[Event "Schack-SM 2024: Mastarklassen"]
[Site "Fortnox Arena, Hejaregatan 5, Vaxjo, Sweden"]
[Date "2024.06.29"]
[Round "1.12"]
[White "Joensson, Oscar"]
[Black "Liden, Tommy"]
[Result "0-1"]
[TimeControl "90 minutes for 40 moves + 30 minutes for the rest of the game + 30 seconds per move from move one."]
[WhiteElo "1989"]
[BlackElo "2123"]

1. e4 {[%clk 01:30:57]} {[%emt 00:00:02]} c5 {[%clk 01:30:52]} {[%emt
00:00:09]} 2. c3 {[%clk 01:31:23]} {[%emt 00:00:04]} d5 {[%clk 01:31:00]}
{[%emt 00:00:22]} 3. exd5 {[%clk 01:31:47]} {[%emt 00:00:06]} Qxd5 {[%clk
01:31:14]} {[%emt 00:00:16]} 4. d4 {[%clk 01:32:12]} {[%emt 00:00:04]} g6
{[%clk 01:31:24]} {[%emt 00:00:21]} 5. Nf3 {[%clk 01:32:31]} {[%emt 00:00:11]}
Bg7 {[%clk 01:31:43]} {[%emt 00:00:10]} 6. Na3 {[%clk 01:32:53]} {[%emt
00:00:08]} cxd4 {[%clk 01:31:34]} {[%emt 00:00:40]} 7. Bc4 {[%clk 01:30:37]}
{[%emt 00:02:45]} Qe4+ {[%clk 01:31:53]} {[%emt 00:00:11]} 8. Be3 {[%clk
01:31:03]} {[%emt 00:00:04]} Nh6 {[%clk 01:31:59]} {[%emt 00:00:25]} 9. Nb5
{[%clk 01:30:56]} {[%emt 00:00:37]} O-O {[%clk 01:27:20]} {[%emt 00:05:08]} 10.
cxd4 {[%clk 01:22:40]} {[%emt 00:08:47]} Nc6 {[%clk 01:25:47]} {[%emt
00:02:02]} 11. Nc3 {[%clk 01:00:40]} {[%emt 00:22:30]} Qf5 {[%clk 01:20:34]}
{[%emt 00:05:43]} 12. O-O {[%clk 00:58:44]} {[%emt 00:02:26]} Ng4 {[%clk
01:18:26]} {[%emt 00:02:38]} 13. Re1 {[%clk 00:56:37]} {[%emt 00:02:38]} Nxe3
{[%clk 01:04:44]} {[%emt 00:14:11]} 14. fxe3 {[%clk 00:55:28]} {[%emt
00:01:40]} a6 {[%clk 00:55:40]} {[%emt 00:09:34]} 15. Rc1 {[%clk 00:50:35]}
{[%emt 00:05:23]} Bd7 {[%clk 00:47:14]} {[%emt 00:08:56]} 16. Nd5 {[%clk
00:37:10]} {[%emt 00:13:54]} Kh8 {[%clk 00:19:21]} {[%emt 00:28:24]} 17. Nb6
{[%clk 00:23:12]} {[%emt 00:14:27]} Rad8 {[%clk 00:17:53]} {[%emt 00:01:58]} 18.
Bb3 {[%clk 00:15:41]} {[%emt 00:08:01]} Be8 {[%clk 00:13:56]} {[%emt 00:04:28]}
19. Qe2 {[%clk 00:14:02]} {[%emt 00:02:08]} Nb4 {[%clk 00:11:38]} {[%emt
00:02:49]} 20. Rc5 {[%clk 00:09:58]} {[%emt 00:04:34]} Qf6 {[%clk 00:06:40]}
{[%emt 00:05:28]} 21. Nc4 {[%clk 00:09:03]} {[%emt 00:01:25]} b6 {[%clk
00:06:50]} {[%emt 00:00:21]} 22. Rc7 {[%clk 00:09:05]} {[%emt 00:00:27]} Nd5
{[%clk 00:06:52]} {[%emt 00:00:28]} 23. Ra7 {[%clk 00:08:45]} {[%emt 00:00:49]}
b5 {[%clk 00:07:04]} {[%emt 00:00:19]} 24. Nfe5 {[%clk 00:00:43]} {[%emt
00:08:31]} bxc4 {[%clk 00:06:59]} {[%emt 00:00:36]} 25. Bxc4 {[%clk 00:01:06]}
{[%emt 00:00:07]} e6 {[%clk 00:04:24]} {[%emt 00:03:04]} 26. Rf1 {[%clk
00:00:59]} {[%emt 00:00:37]} Qg5 {[%clk 00:04:16]} {[%emt 00:00:39]} 27. Rfxf7
{[%clk 00:00:32]} {[%emt 00:00:56]} Bxf7 {[%clk 00:04:04]} {[%emt 00:00:43]} 28.
Nxf7+ {[%clk 00:00:43]} {[%emt 00:00:19]} Rxf7 {[%clk 00:04:09]} {[%emt
00:00:24]} 29. Rxf7 {[%clk 00:01:08]} {[%emt 00:00:06]} Qxe3+ {[%clk 00:03:15]}
{[%emt 00:01:23]} 30. Qxe3 {[%clk 00:01:31]} {[%emt 00:00:07]} Nxe3 {[%clk
00:03:39]} {[%emt 00:00:07]} 31. Bxe6 {[%clk 00:01:23]} {[%emt 00:00:38]} Bxd4
{[%clk 00:04:05]} {[%emt 00:00:03]} 32. Kf2 {[%clk 00:01:33]} {[%emt 00:00:20]}
Nd1+ {[%clk 00:03:41]} {[%emt 00:00:54]} 33. Kf3 {[%clk 00:01:44]} {[%emt
00:00:19]} Nxb2 {[%clk 00:03:39]} {[%emt 00:00:32]} 34. h4 {[%clk 00:00:53]}
{[%emt 00:01:21]} Nd3 {[%clk 00:02:59]} {[%emt 00:01:10]} 35. Rc7 {[%clk
00:00:37]} {[%emt 00:00:47]} Nc5 {[%clk 00:02:34]} {[%emt 00:00:55]} 36. Bc4
{[%clk 00:00:43]} {[%emt 00:00:24]} Rf8+ {[%clk 00:02:26]} {[%emt 00:00:37]} 37.
Kg4 {[%clk 00:01:04]} {[%emt 00:00:08]} Be3 {[%clk 00:01:50]} {[%emt 00:01:07]}
38. g3 {[%clk 00:01:08]} {[%emt 00:00:27]} Ne4 {[%clk 00:01:31]} {[%emt
00:00:49]} 39. Bxa6 {[%clk 00:01:04]} {[%emt 00:00:34]} Nf2# {[%clk 00:01:44]}
{[%emt 00:00:17]} 0-1

[Event "Schack-SM 2024: Mastarklassen"]
[Site "Fortnox Arena, Hejaregatan 5, Vaxjo, Sweden"]
[Date "2024.06.29"]
[Round "1.13"]
[White "Collett, Peter"]
[Black "Arvidsson, Jonas"]
[Result "1-0"]
[TimeControl "90 minutes for 40 moves + 30 minutes for the rest of the game + 30 seconds per move from move one."]
[WhiteTitle "CM"]
[WhiteElo "2116"]
[BlackElo "1960"]

1. d4 {[%clk 01:30:56]} {[%emt 00:00:04]} Nf6 {[%clk 01:30:47]} {[%emt
00:00:14]} 2. c4 {[%clk 01:31:19]} {[%emt 00:00:07]} c5 {[%clk 01:31:10]}
{[%emt 00:00:06]} 3. d5 {[%clk 01:31:42]} {[%emt 00:00:07]} b5 {[%clk
01:31:34]} {[%emt 00:00:06]} 4. Qc2 {[%clk 01:32:06]} {[%emt 00:00:05]} bxc4
{[%clk 01:31:18]} {[%emt 00:00:47]} 5. e4 {[%clk 01:32:12]} {[%emt 00:00:23]}
e6 {[%clk 01:31:11]} {[%emt 00:00:37]} 6. Bxc4 {[%clk 01:24:13]} {[%emt
00:08:29]} exd5 {[%clk 01:30:19]} {[%emt 00:01:22]} 7. exd5 {[%clk 01:20:16]}
{[%emt 00:04:27]} d6 {[%clk 01:30:07]} {[%emt 00:00:42]} 8. Ne2 {[%clk
01:11:08]} {[%emt 00:09:38]} Be7 {[%clk 01:29:29]} {[%emt 00:01:08]} 9. O-O
{[%clk 01:08:28]} {[%emt 00:03:10]} O-O {[%clk 01:27:03]} {[%emt 00:02:57]} 10.
Ng3 {[%clk 01:07:10]} {[%emt 00:01:47]} Nbd7 {[%clk 01:25:41]} {[%emt
00:01:53]} 11. Nc3 {[%clk 01:04:58]} {[%emt 00:02:42]} Nb6 {[%clk 01:25:23]}
{[%emt 00:00:48]} 12. b3 {[%clk 01:04:31]} {[%emt 00:00:56]} Nxc4 {[%clk
01:24:30]} {[%emt 00:01:23]} 13. bxc4 {[%clk 01:04:53]} {[%emt 00:00:08]} Ng4
{[%clk 01:23:57]} {[%emt 00:01:03]} 14. h3 {[%clk 00:59:32]} {[%emt 00:05:51]}
Ne5 {[%clk 01:21:23]} {[%emt 00:03:04]} 15. Nd1 {[%clk 00:57:01]} {[%emt
00:03:00]} Rb8 {[%clk 01:12:09]} {[%emt 00:09:46]} 16. Bd2 {[%clk 00:47:57]}
{[%emt 00:09:34]} Bf6 {[%clk 01:07:09]} {[%emt 00:05:30]} 17. Rc1 {[%clk
00:45:53]} {[%emt 00:02:33]} Re8 {[%clk 01:01:24]} {[%emt 00:06:15]} 18. Bc3
{[%clk 00:31:38]} {[%emt 00:14:45]} Ng6 {[%clk 00:51:36]} {[%emt 00:10:19]} 19.
Nh5 {[%clk 00:26:05]} {[%emt 00:06:02]} Bxc3 {[%clk 00:44:42]} {[%emt
00:07:24]} 20. Qxc3 {[%clk 00:26:12]} {[%emt 00:00:23]} Re5 {[%clk 00:39:51]}
{[%emt 00:05:22]} 21. Ng3 {[%clk 00:20:46]} {[%emt 00:05:54]} Nf4 {[%clk
00:36:15]} {[%emt 00:04:06]} 22. Nb2 {[%clk 00:14:50]} {[%emt 00:06:27]} Rg5
{[%clk 00:28:22]} {[%emt 00:08:23]} 23. Rfe1 {[%clk 00:13:40]} {[%emt
00:01:40]} h5 {[%clk 00:26:52]} {[%emt 00:02:00]} 24. Re4 {[%clk 00:09:06]}
{[%emt 00:05:04]} Rxb2 {[%clk 00:20:11]} {[%emt 00:07:12]} 25. Qxb2 {[%clk
00:09:26]} {[%emt 00:00:10]} Nd3 {[%clk 00:20:34]} {[%emt 00:00:07]} 26. Qe2
{[%clk 00:05:25]} {[%emt 00:04:31]} Nxc1 {[%clk 00:18:03]} {[%emt 00:03:02]} 27.
Re8+ {[%clk 00:05:41]} {[%emt 00:00:12]} Kh7 {[%clk 00:18:26]} {[%emt
00:00:07]} 28. Qc2+ {[%clk 00:05:08]} {[%emt 00:01:04]} Bf5 {[%clk 00:18:49]}
{[%emt 00:00:07]} 29. Nxf5 {[%clk 00:05:17]} {[%emt 00:00:21]} Qd7 {[%clk
00:15:46]} {[%emt 00:03:33]} 30. Nxd6+ {[%clk 00:04:53]} {[%emt 00:00:54]} Rg6
{[%clk 00:14:50]} {[%emt 00:01:27]} 31. Qxc1 {[%clk 00:02:15]} {[%emt
00:03:07]} Qxd6 {[%clk 00:13:59]} {[%emt 00:01:21]} 32. Qe3 {[%clk 00:02:35]}
{[%emt 00:00:10]} Qb6 {[%clk 00:10:16]} {[%emt 00:04:13]} 33. Rc8 {[%clk
00:02:08]} {[%emt 00:00:56]} Qb1+ {[%clk 00:09:11]} {[%emt 00:01:36]} 34. Kh2
{[%clk 00:02:26]} {[%emt 00:00:11]} Qxa2 {[%clk 00:05:56]} {[%emt 00:03:45]} 35.
Rxc5 {[%clk 00:02:33]} {[%emt 00:00:24]} Rf6 {[%clk 00:05:47]} {[%emt
00:00:38]} 36. f4 {[%clk 00:00:43]} {[%emt 00:02:20]} Rb6 {[%clk 00:04:31]}
{[%emt 00:01:46]} 37. Qe4+ {[%clk 00:00:48]} {[%emt 00:00:26]} g6 {[%clk
00:04:34]} {[%emt 00:00:27]} 38. Rc7 {[%clk 00:00:54]} {[%emt 00:00:23]} Rf6
{[%clk 00:04:23]} {[%emt 00:00:42]} 39. Qe5 {[%clk 00:00:35]} {[%emt 00:00:49]}
Rf5 {[%clk 00:04:24]} {[%emt 00:00:29]} 40. Qe8 {[%clk 00:00:52]} {[%emt
00:00:13]} Rxf4 {[%clk 00:01:35]} {[%emt 00:03:19]} 41. Rxf7+ {[%clk 00:01:06]}
{[%emt 00:00:16]} Rxf7 {[%clk 00:01:57]} {[%emt 00:00:07]} 42. Qxf7+ {[%clk
00:01:28]} {[%emt 00:00:08]} Kh6 {[%clk 00:02:23]} {[%emt 00:00:05]} 43. Qf4+
{[%clk 00:01:19]} {[%emt 00:00:39]} Kg7 {[%clk 00:02:11]} {[%emt 00:00:42]} 44.
Qd4+ {[%clk 00:01:00]} {[%emt 00:00:48]} Kh7 {[%clk 00:02:11]} {[%emt
00:00:31]} 45. c5 {[%clk 00:01:12]} {[%emt 00:00:18]} Qb3 {[%clk 00:02:13]}
{[%emt 00:00:28]} 46. c6 {[%clk 00:00:32]} {[%emt 00:01:10]} 1-0

[Event "Schack-SM 2024: Mastarklassen"]
[Site "Fortnox Arena, Hejaregatan 5, Vaxjo, Sweden"]
[Date "2024.06.29"]
[Round "1.14"]
[White "Granath, Jonas"]
[Black "Bjorkman, Filip"]
[Result "1/2-1/2"]
[TimeControl "90 minutes for 40 moves + 30 minutes for the rest of the game + 30 seconds per move from move one."]
[WhiteElo "1948"]
[BlackElo "2116"]

1. e4 {[%clk 01:30:57]} {[%emt 00:00:03]} c5 {[%clk 01:30:53]} {[%emt
00:00:07]} 2. c3 {[%clk 01:31:22]} {[%emt 00:00:05]} Nf6 {[%clk 01:31:08]}
{[%emt 00:00:15]} 3. e5 {[%clk 01:31:38]} {[%emt 00:00:14]} Nd5 {[%clk
01:31:31]} {[%emt 00:00:06]} 4. d4 {[%clk 01:31:50]} {[%emt 00:00:19]} cxd4
{[%clk 01:31:54]} {[%emt 00:00:07]} 5. cxd4 {[%clk 01:32:15]} {[%emt 00:00:05]}
d6 {[%clk 01:31:55]} {[%emt 00:00:29]} 6. Nf3 {[%clk 01:32:36]} {[%emt
00:00:09]} Nc6 {[%clk 01:32:17]} {[%emt 00:00:08]} 7. Bc4 {[%clk 01:32:59]}
{[%emt 00:00:08]} Nb6 {[%clk 01:32:43]} {[%emt 00:00:03]} 8. Bb5 {[%clk
01:33:15]} {[%emt 00:00:13]} dxe5 {[%clk 01:33:05]} {[%emt 00:00:09]} 9. Nxe5
{[%clk 01:33:35]} {[%emt 00:00:10]} Bd7 {[%clk 01:33:30]} {[%emt 00:00:05]} 10.
Nxd7 {[%clk 01:33:52]} {[%emt 00:00:13]} Qxd7 {[%clk 01:33:57]} {[%emt
00:00:03]} 11. Nc3 {[%clk 01:34:00]} {[%emt 00:00:22]} e6 {[%clk 01:34:22]}
{[%emt 00:00:05]} 12. O-O {[%clk 01:34:07]} {[%emt 00:00:23]} Rd8 {[%clk
01:34:47]} {[%emt 00:00:04]} 13. Be3 {[%clk 01:33:53]} {[%emt 00:00:44]} Be7
{[%clk 01:35:05]} {[%emt 00:00:12]} 14. Qg4 {[%clk 01:32:52]} {[%emt 00:01:31]}
O-O {[%clk 01:35:23]} {[%emt 00:00:12]} 15. Rad1 {[%clk 01:31:04]} {[%emt
00:02:17]} g6 {[%clk 01:35:28]} {[%emt 00:00:26]} 16. d5 {[%clk 01:30:28]}
{[%emt 00:01:06]} Nxd5 {[%clk 01:34:09]} {[%emt 00:01:49]} 17. Bxa7 {[%clk
01:30:16]} {[%emt 00:00:43]} h5 {[%clk 01:33:52]} {[%emt 00:00:47]} 18. Qf3
{[%clk 01:30:14]} {[%emt 00:00:32]} Qc7 {[%clk 01:34:00]} {[%emt 00:00:22]} 19.
Nxd5 {[%clk 01:30:21]} {[%emt 00:00:23]} exd5 {[%clk 01:34:27]} {[%emt
00:00:03]} 20. Be3 {[%clk 01:28:37]} {[%emt 00:02:13]} Qe5 {[%clk 01:25:50]}
{[%emt 00:09:08]} 21. a4 {[%clk 01:23:58]} {[%emt 00:05:09]} Rfe8 {[%clk
00:40:18]} {[%emt 00:46:02]} 22. Bb6 {[%clk 01:05:54]} {[%emt 00:18:33]} Bd6
{[%clk 00:25:24]} {[%emt 00:15:25]} 23. g3 {[%clk 01:05:50]} {[%emt 00:00:34]}
Bc7 {[%clk 00:25:38]} {[%emt 00:00:17]} 24. Bxc7 {[%clk 00:52:13]} {[%emt
00:14:06]} Qxc7 {[%clk 00:24:01]} {[%emt 00:02:08]} 25. Rxd5 {[%clk 00:49:09]}
{[%emt 00:03:34]} Ne5 {[%clk 00:24:22]} {[%emt 00:00:08]} 26. Qe4 {[%clk
00:29:46]} {[%emt 00:19:52]} Rxd5 {[%clk 00:23:52]} {[%emt 00:00:59]} 27. Qxd5
{[%clk 00:24:54]} {[%emt 00:05:24]} Rd8 {[%clk 00:23:47]} {[%emt 00:00:35]} 28.
Qe4 {[%clk 00:21:54]} {[%emt 00:03:29]} Rd4 {[%clk 00:24:05]} {[%emt 00:00:12]}
29. Qe3 {[%clk 00:20:42]} {[%emt 00:01:43]} Qd6 {[%clk 00:23:35]} {[%emt
00:01:00]} 30. Be2 {[%clk 00:15:57]} {[%emt 00:05:15]} Qd5 {[%clk 00:20:02]}
{[%emt 00:04:04]} 31. f4 {[%clk 00:07:41]} {[%emt 00:08:44]} Re4 {[%clk
00:16:20]} {[%emt 00:04:12]} 32. Bf3 {[%clk 00:06:50]} {[%emt 00:01:22]} Nxf3+
{[%clk 00:16:20]} {[%emt 00:00:31]} 33. Qxf3 {[%clk 00:07:10]} {[%emt
00:00:09]} h4 {[%clk 00:08:19]} {[%emt 00:08:30]} 34. gxh4 {[%clk 00:03:16]}
{[%emt 00:04:24]} Qd4+ {[%clk 00:08:21]} {[%emt 00:00:29]} 35. Rf2 {[%clk
00:02:48]} {[%emt 00:00:58]} Qxa4 {[%clk 00:02:35]} {[%emt 00:06:16]} 36. h5
{[%clk 00:02:37]} {[%emt 00:00:41]} gxh5 {[%clk 00:02:03]} {[%emt 00:01:03]} 37.
Qxh5 {[%clk 00:02:28]} {[%emt 00:00:37]} Re1+ {[%clk 00:02:25]} {[%emt
00:00:09]} 38. Kg2 {[%clk 00:02:30]} {[%emt 00:00:27]} Qe4+ {[%clk 00:01:00]}
{[%emt 00:01:54]} 39. Qf3 {[%clk 00:02:48]} {[%emt 00:00:14]} Qf5 {[%clk
00:01:05]} {[%emt 00:00:25]} 40. Qg3+ {[%clk 00:02:05]} {[%emt 00:01:13]} Kf8
{[%clk 00:00:59]} {[%emt 00:00:37]} 41. Qa3+ {[%clk 00:00:40]} {[%emt
00:01:55]} Kg8 {[%clk 00:00:53]} {[%emt 00:00:35]} 42. Rd2 {[%clk 00:25:01]}
{[%emt 00:06:08]} Qxf4 {[%clk 00:07:06]} {[%emt 00:24:17]} 43. Rd8+ {[%clk
00:24:09]} {[%emt 00:01:21]} Kh7 {[%clk 00:06:14]} {[%emt 00:01:23]} 44. Qh3+
{[%clk 00:24:07]} {[%emt 00:00:32]} Kg6 {[%clk 00:06:37]} {[%emt 00:00:07]} 45.
Rg8+ {[%clk 00:21:44]} {[%emt 00:02:53]} Kf6 {[%clk 00:07:01]} {[%emt
00:00:07]} 46. Qh8+ {[%clk 00:20:59]} {[%emt 00:01:15]} Ke7 {[%clk 00:00:38]}
{[%emt 00:06:53]} 47. Re8+ {[%clk 00:21:08]} {[%emt 00:00:21]} Kd7 {[%clk
00:01:06]} {[%emt 00:00:02]} 48. Rxe1 {[%clk 00:09:38]} {[%emt 00:12:00]} Qg4+
{[%clk 00:00:40]} {[%emt 00:00:56]} 49. Kf2 {[%clk 00:09:41]} {[%emt 00:00:26]}
Qf5+ {[%clk 00:01:01]} {[%emt 00:00:10]} 50. Ke2 {[%clk 00:09:51]} {[%emt
00:00:19]} Qg4+ {[%clk 00:00:32]} {[%emt 00:01:00]} 51. Kd2 {[%clk 00:05:26]}
{[%emt 00:04:54]} Qg2+ {[%clk 00:00:32]} {[%emt 00:00:30]} 52. Re2 {[%clk
00:05:14]} {[%emt 00:00:42]} Qd5+ {[%clk 00:00:50]} {[%emt 00:00:12]} 53. Ke3
{[%clk 00:02:08]} {[%emt 00:03:35]} Qg5+ {[%clk 00:01:10]} {[%emt 00:00:12]} 54.
Kd3 {[%clk 00:01:46]} {[%emt 00:00:52]} Qb5+ {[%clk 00:01:06]} {[%emt
00:00:34]} 55. Kd2 {[%clk 00:01:19]} {[%emt 00:00:55]} Qd5+ {[%clk 00:01:09]}
{[%emt 00:00:29]} 56. Kc3 {[%clk 00:01:22]} {[%emt 00:00:27]} Qc5+ {[%clk
00:01:14]} {[%emt 00:00:25]} 57. Kd3 {[%clk 00:01:14]} {[%emt 00:00:38]} Qb5+
{[%clk 00:01:35]} {[%emt 00:00:09]} 58. Kd2 {[%clk 00:01:25]} 1/2-1/2

[Event "Schack-SM 2024: Mastarklassen"]
[Site "Fortnox Arena, Hejaregatan 5, Vaxjo, Sweden"]
[Date "2024.06.29"]
[Round "1.2"]
[White "Ljung, Harald"]
[Black "Landgren, Andreas"]
[Result "1-0"]
[TimeControl "90 minutes for 40 moves + 30 minutes for the rest of the game + 30 seconds per move from move one."]
[BlackTitle "FM"]
[WhiteElo "2101"]
[BlackElo "2243"]

1. d4 {[%clk 01:30:56]} {[%emt 00:00:03]} Nf6 {[%clk 01:30:53]} {[%emt
00:00:08]} 2. Nf3 {[%clk 01:31:08]} {[%emt 00:00:18]} e6 {[%clk 01:31:06]}
{[%emt 00:00:16]} 3. c4 {[%clk 01:29:41]} {[%emt 00:01:57]} d5 {[%clk
01:31:24]} {[%emt 00:00:13]} 4. e3 {[%clk 01:29:54]} {[%emt 00:00:16]} Be7
{[%clk 01:28:08]} {[%emt 00:03:46]} 5. Nc3 {[%clk 01:30:12]} {[%emt 00:00:12]}
O-O {[%clk 01:28:13]} {[%emt 00:00:25]} 6. Qc2 {[%clk 01:28:54]} {[%emt
00:01:48]} b6 {[%clk 01:23:17]} {[%emt 00:05:27]} 7. cxd5 {[%clk 01:25:05]}
{[%emt 00:04:20]} exd5 {[%clk 01:20:19]} {[%emt 00:03:27]} 8. Bd3 {[%clk
01:23:37]} {[%emt 00:01:59]} c5 {[%clk 01:07:37]} {[%emt 00:13:12]} 9. O-O
{[%clk 01:18:50]} {[%emt 00:05:17]} Nc6 {[%clk 00:58:32]} {[%emt 00:09:34]} 10.
dxc5 {[%clk 01:08:47]} {[%emt 00:10:33]} Nb4 {[%clk 00:54:30]} {[%emt
00:04:32]} 11. Qe2 {[%clk 01:08:47]} {[%emt 00:00:33]} bxc5 {[%clk 00:45:52]}
{[%emt 00:09:07]} 12. b3 {[%clk 00:57:19]} {[%emt 00:11:57]} Qa5 {[%clk
00:40:31]} {[%emt 00:05:51]} 13. Rd1 {[%clk 00:53:10]} {[%emt 00:04:39]} Nxd3
{[%clk 00:23:56]} {[%emt 00:17:05]} 14. Qxd3 {[%clk 00:53:27]} {[%emt
00:00:11]} Ba6 {[%clk 00:23:50]} {[%emt 00:00:37]} 15. Qd2 {[%clk 00:52:33]}
{[%emt 00:01:22]} Qb6 {[%clk 00:20:50]} {[%emt 00:03:32]} 16. Na4 {[%clk
00:49:39]} {[%emt 00:03:24]} Qe6 {[%clk 00:20:36]} {[%emt 00:00:42]} 17. Ba3
{[%clk 00:47:42]} {[%emt 00:02:28]} Rac8 {[%clk 00:17:31]} {[%emt 00:03:35]} 18.
Rac1 {[%clk 00:45:45]} {[%emt 00:02:26]} c4 {[%clk 00:16:36]} {[%emt 00:01:26]}
19. Nd4 {[%clk 00:44:45]} {[%emt 00:01:30]} Qd7 {[%clk 00:16:13]} {[%emt
00:00:53]} 20. Bxe7 {[%clk 00:43:42]} {[%emt 00:01:33]} Qxe7 {[%clk 00:16:32]}
{[%emt 00:00:12]} 21. Qa5 {[%clk 00:37:26]} {[%emt 00:06:46]} Qd6 {[%clk
00:15:28]} {[%emt 00:01:34]} 22. b4 {[%clk 00:32:29]} {[%emt 00:05:27]} Rb8
{[%clk 00:10:23]} {[%emt 00:05:34]} 23. b5 {[%clk 00:28:57]} {[%emt 00:04:02]}
Bc8 {[%clk 00:09:55]} {[%emt 00:00:58]} 24. Nc6 {[%clk 00:26:04]} {[%emt
00:03:23]} Rb7 {[%clk 00:08:58]} {[%emt 00:01:29]} 25. h3 {[%clk 00:23:15]}
{[%emt 00:03:17]} Qc7 {[%clk 00:08:00]} {[%emt 00:01:28]} 26. Qxc7 {[%clk
00:18:57]} {[%emt 00:04:49]} Rxc7 {[%clk 00:08:28]} {[%emt 00:00:01]} 27. Nc3
{[%clk 00:18:53]} {[%emt 00:00:34]} Be6 {[%clk 00:05:07]} {[%emt 00:03:51]} 28.
a4 {[%clk 00:15:59]} {[%emt 00:03:25]} Rfc8 {[%clk 00:04:55]} {[%emt 00:00:42]}
29. f3 {[%clk 00:13:43]} {[%emt 00:02:45]} Kf8 {[%clk 00:04:43]} {[%emt
00:00:42]} 30. Nb4 {[%clk 00:12:52]} {[%emt 00:01:20]} Rd7 {[%clk 00:04:20]}
{[%emt 00:00:53]} 31. Rd4 {[%clk 00:12:35]} {[%emt 00:00:47]} Ke7 {[%clk
00:01:21]} {[%emt 00:03:29]} 32. Rcd1 {[%clk 00:12:40]} {[%emt 00:00:24]} a5
{[%clk 00:01:28]} {[%emt 00:00:24]} 33. Nc6+ {[%clk 00:12:19]} {[%emt
00:00:50]} Rxc6 {[%clk 00:01:53]} {[%emt 00:00:05]} 34. bxc6 {[%clk 00:12:44]}
{[%emt 00:00:04]} Rc7 {[%clk 00:01:54]} {[%emt 00:00:30]} 35. Rb1 {[%clk
00:12:34]} {[%emt 00:00:39]} Rxc6 {[%clk 00:02:14]} {[%emt 00:00:13]} 36. Rb5
{[%clk 00:11:14]} {[%emt 00:01:49]} Ra6 {[%clk 00:02:25]} {[%emt 00:00:19]} 37.
Rb7+ {[%clk 00:10:44]} {[%emt 00:01:01]} Kd6 {[%clk 00:02:04]} {[%emt
00:00:50]} 38. Rb5 {[%clk 00:08:39]} {[%emt 00:02:33]} Kc6 {[%clk 00:01:53]}
{[%emt 00:00:42]} 39. g4 {[%clk 00:04:29]} {[%emt 00:04:40]} h6 {[%clk
00:01:47]} {[%emt 00:00:36]} 40. f4 {[%clk 00:04:41]} {[%emt 00:00:18]} g6
{[%clk 00:00:42]} {[%emt 00:01:35]} 41. f5 {[%clk 00:04:09]} {[%emt 00:01:02]}
gxf5 {[%clk 00:29:32]} {[%emt 00:01:40]} 42. gxf5 {[%clk 00:34:16]} {[%emt
00:00:24]} Bxf5 {[%clk 00:29:50]} {[%emt 00:00:13]} 43. Rf4 {[%clk 00:34:29]}
{[%emt 00:00:17]} Ne4 {[%clk 00:28:38]} {[%emt 00:01:41]} 44. Nxe4 {[%clk
00:34:46]} {[%emt 00:00:11]} Bxe4 {[%clk 00:28:31]} {[%emt 00:00:37]} 45. Rf6+
{[%clk 00:35:14]} {[%emt 00:00:03]} 1-0